bitfinex/quotes_ETHUSD_20220106
["timestamp","ask_amount","ask_price","bid_price","bid_amount"]
[1641495980078,17.84257315,3446.0,3445.9,2.59191954]
[1641495984120,20.29891369,3446.0,3445.9,2.59191954]
[1641495984321,20.29891369,3446.0,3445.9,7.05593726]
[1641495984522,17.84257315,3446.0,3445.9,7.47393726]
[1641495984723,12.04084315,3446.0,3445.9,8.47393726]
[1641495984921,12.04084315,3446.0,3445.9,7.47393726]
[1641495985168,12.04084315,3446.0,3445.9,8.47393726]
[1641495985169,4.75257315,3446.0,3445.9,8.47393726]
[1641495985670,0.00430453,3446.8,3445.9,7.47393726]
[1641495985872,0.00430453,3446.8,3446.3,0.72523]
[1641495986071,0.00284212,3446.7,3446.3,0.72523]
[1641495986468,0.0022737,3446.6,3446.3,0.72523]
[1641495986870,0.00170527,3446.5,3446.3,0.72523]
[1641495987272,2.45590519,3446.7,3446.3,0.72523]
[1641495987273,0.00113685,3446.4,3446.3,0.72523]
[1641495987871,0.00113685,3446.4,3446.3,3.74665208]
[1641495988070,0.00113685,3446.4,3446.3,0.72523]
[1641495990827,0.00113685,3446.4,3446.3,1.02523]
[1641495991631,2.40704204,3447.1,3446.7,0.72523]
[1641495991829,2.40704204,3447.1,3446.8,1.72707916]
[1641495992029,2.35704204,3447.1,3446.8,1.72707916]
[1641495992229,1.10526777,3447.2,3446.8,1.72707916]
[1641495992432,0.7252254,3447.1,3446.8,1.72707916]
[1641495992684,0.72920436,3447.1,3446.8,1.72707916]
[1641495992870,0.72920436,3447.1,3446.1,2.17571]
[1641495993069,0.00397896,3447.1,3446.1,3.20099]
[1641495993270,0.00397896,3447.1,3446.2,0.00113685]
[1641495993669,2.96667114,3447.1,3446.2,0.00113685]
[1641495993971,1.64982807,3446.6,3446.2,0.00113685]
[1641495994169,1.64982807,3446.6,3446.4,1.45055]
[1641495994369,2.90139755,3447.1,3446.4,1.45055]
[1641495994769,0.72529,3446.8,3446.4,1.45055]
[1641495995171,0.00170527,3446.7,3446.4,1.45055]
[1641495995571,0.00113685,3446.6,3446.4,1.45055]
[1641495995970,0.7253118,3446.7,3446.4,1.45055]
[1641495996415,0.00113685,3446.6,3446.4,1.45055]
[1641496003471,2.84356533,3446.6,3446.2,0.00113685]
[1641496003671,0.7254469,3446.5,3446.2,0.00113685]
[1641496003933,0.7254469,3446.5,3445.3,1.21]
[1641496003934,0.76126442,3446.5,3446.1,0.00170527]
[1641496004122,0.76126442,3446.5,3445.4,0.00568424]
[1641496004123,2.9467696,3446.4,3445.4,0.00568424]
[1641496004323,3.22745957,3446.6,3445.4,0.00568424]
[1641496004521,2.18739214,3445.7,3445.4,0.00568424]
[1641496004721,0.7255382,3445.6,3445.4,1.45668424]
[1641496005124,3.70655993,3445.6,3444.7,0.194787]
[1641496005325,3.70655993,3445.6,3444.7,0.19909159]
[1641496005326,3.98102173,3445.6,3444.7,0.19909159]
[1641496005528,4.24631352,3445.6,3444.8,0.00341054]
[1641496005723,0.7256582,3445.2,3444.8,0.00341054]
[1641496005924,0.72584,3445.1,3444.8,0.00341054]
[1641496006123,7.95,3445.0,3444.7,2.13e-06]
[1641496006324,8.56723685,3445.0,3444.7,2.13e-06]
[1641496006724,1.0,3444.9,3444.7,2.13e-06]
[1641496007871,9.33118921,3445.0,3444.7,2.13e-06]
[1641496008076,1.0,3444.9,3444.7,2.13e-06]
[1641496009573,2.84036798,3444.9,3444.7,2.13e-06]
[1641496009972,2.84087009,3444.9,3444.7,2.13e-06]
[1641496012419,2.45733581,3444.8,3444.7,2.13e-06]
[1641496012622,5.81389244,3444.8,3444.7,2.13e-06]
[1641496013323,0.6545,3444.6,3443.9,0.004]
[1641496013528,0.01200944,3444.2,3443.9,0.004]
[1641496013823,9.95,3444.0,3443.3,5.95854738]
[1641496014021,10.368,3444.0,3443.3,5.95854738]
[1641496014321,0.72621,3443.8,3443.4,6.20341055]
[1641496014522,0.72621,3443.8,3443.4,1.055e-05]
[1641496014721,0.00169472,3443.7,3443.5,0.00284212]
[1641496014922,0.00169472,3443.7,3442.5,0.65337573]
[1641496014923,9.95,3443.6,3442.5,0.65337573]
[1641496015175,0.7261741,3443.2,3442.6,0.00429699]
[1641496015473,1.59717718,3442.8,3442.6,0.00429699]
[1641496016273,0.00284211,3443.1,3442.6,0.00429699]
[1641496016674,0.00227369,3443.0,3442.6,0.00429699]
[1641496017079,0.00170527,3442.9,3442.6,0.00429699]
[1641496017275,0.00170527,3442.9,3442.5,0.65337573]
[1641496017479,0.00113684,3442.8,3442.7,2.19949454]
[1641496017678,0.00113684,3442.8,3442.7,3.65142454]
[1641496018277,0.00113684,3442.8,3442.7,4.89706806]
[1641496018921,0.00429712,3443.5,3442.7,8.3502865]
[1641496019316,0.00341054,3443.4,3443.3,2.04330151]
[1641496019617,1.76910454,3444.1,3443.0,3.77129709]
[1641496019818,1.76910454,3444.1,3443.1,3.07981912]
[1641496020017,0.00682109,3444.0,3443.1,3.09567779]
[1641496020317,0.00625266,3443.9,3443.5,0.72589]
[1641496020718,0.00568424,3443.8,3443.5,0.72589]
[1641496021116,0.00511581,3443.7,3443.5,0.72589]
[1641496021517,0.00454739,3443.6,3443.2,1.45175]
[1641496021918,0.00397897,3443.5,3443.2,1.45175]
[1641496022319,0.00682109,3444.0,3443.5,0.7259]
[1641496022771,8.47456777,3444.6,3443.5,0.7259]
[1641496022772,0.00625266,3443.9,3443.5,0.7259]
[1641496023171,0.00625266,3443.9,3443.5,1.0259]
[1641496023172,0.00568424,3443.8,3443.5,1.0259]
[1641496023374,0.00568424,3443.8,3443.7,8.96240943]
[1641496023576,2.32277139,3443.9,3443.7,9.98480943]
[1641496023772,1.80447139,3443.9,3443.8,6.45]
[1641496023970,1.10526777,3444.5,3443.8,6.45]
[1641496023971,0.6545,3444.6,3443.8,1.418]
[1641496024167,0.6545,3444.6,3444.4,0.3]
[1641496024569,0.6545,3444.6,3444.5,0.72562]
[1641496024967,0.66473163,3444.6,3444.5,2.43426948]
[1641496025269,0.66473163,3444.6,3444.5,7.98426948]
[1641496025270,0.01023163,3444.6,3444.5,7.98426948]
[1641496025469,0.00429687,3445.3,3444.5,6.60449215]
[1641496025870,0.00341054,3445.2,3444.5,6.60449215]
[1641496026071,0.00341054,3445.2,3444.9,1.30517497]
[1641496026268,0.00429687,3445.3,3444.9,1.30517497]
[1641496026269,0.00284211,3445.1,3445.0,0.72546]
[1641496028124,0.00284211,3445.1,3444.9,1.45091]
[1641496028523,3.84230588,3445.9,3444.9,1.45091]
[1641496028524,0.00227369,3445.0,3444.9,1.45091]
[1641496029024,0.00682108,3445.0,3444.9,1.45091]
[1641496035621,0.00682108,3445.0,3444.8,1.4511]
[1641496036019,0.00170527,3444.9,3444.8,1.4511]
[1641496038076,0.00170527,3444.9,3444.4,1.89375658]
[1641496038473,0.00113684,3444.8,3444.6,0.72568]
[1641496041616,0.00113684,3444.8,3444.2,1.45136]
[1641496041820,0.00113684,3444.8,3444.2,1.75136]
[1641496042115,0.00113684,3444.8,3444.3,0.00170527]
[1641496042715,1.88877424,3444.7,3444.3,0.00170527]
[1641496044117,0.00113684,3444.8,3444.3,0.00170527]
[1641496044320,0.00113684,3444.8,3444.5,0.72569]
[1641496045872,0.00113684,3444.8,3444.6,2.05517441]
[1641496046265,0.00113684,3444.8,3444.5,0.72569]
[1641496050924,0.00113684,3444.8,3444.3,0.00170527]
[1641496051523,0.00113684,3444.8,3444.0,0.00341054]
[1641496052326,1.60921403,3444.2,3444.0,0.00341054]
[1641496056176,0.03836325,3444.8,3444.0,0.00341054]
[1641496056424,0.00542357,3444.8,3444.0,0.00341054]
[1641496056624,4.98396777,3445.1,3444.8,0.03293968]
[1641496056625,1.10526777,3445.1,3444.8,0.03293968]
[1641496057024,0.00113685,3445.0,3444.8,0.03293968]
[1641496057426,4.79112272,3445.3,3444.8,0.03293968]
[1641496057427,0.0022737,3445.2,3444.8,0.03293968]
[1641496057626,0.0022737,3445.2,3444.8,0.75859968]
[1641496057925,0.00170527,3445.1,3444.8,0.75859968]
[1641496058126,3.4,3445.0,3444.8,1e-08]
[1641496058327,0.00170527,3445.1,3444.8,1e-08]
[1641496058726,0.00170527,3445.1,3444.9,0.72564]
[1641496059125,0.00170527,3445.1,3444.9,2.70126618]
[1641496059426,0.00170527,3445.1,3444.9,0.72564]
[1641496059830,0.00170527,3445.1,3444.8,1e-08]
[1641496060025,0.00170527,3445.1,3444.8,0.72567001]
[1641496062174,0.00170527,3445.1,3444.8,1e-08]
[1641496064717,0.00170527,3445.1,3444.8,0.72568001]
[1641496066319,1.83460024,3445.1,3444.8,0.72568001]
[1641496066522,1.83460024,3445.1,3444.8,1e-08]
[1641496067320,2.45724602,3445.0,3444.8,1e-08]
[1641496068969,3.21486472,3445.0,3444.8,1e-08]
[1641496070770,2.45724602,3444.9,3444.8,1e-08]
[1641496072921,1.78334844,3445.0,3444.8,1e-08]
[1641496073122,1.75196723,3445.0,3444.8,1e-08]
[1641496073323,2.49220778,3445.1,3444.8,1e-08]
[1641496073523,2.45895129,3445.1,3444.8,1e-08]
[1641496073723,2.45724602,3444.9,3444.8,1e-08]
[1641496074523,0.00170527,3445.1,3444.8,1e-08]
[1641496074524,2.45895129,3445.1,3444.8,1e-08]
[1641496074725,0.03876471,3445.0,3444.8,1e-08]
[1641496074924,2.45895129,3445.1,3444.8,1e-08]
[1641496075173,2.45724602,3444.9,3444.8,1e-08]
[1641496075377,2.45601602,3444.9,3444.8,1e-08]
[1641496075574,2.43788602,3444.9,3444.8,1e-08]
[1641496075775,0.00170527,3445.1,3444.8,1e-08]
[1641496075975,0.65244405,3445.2,3444.8,1e-08]
[1641496076175,0.65244405,3445.2,3444.9,0.00113684]
[1641496076375,1.89702241,3445.1,3444.9,0.00113684]
[1641496078274,1.10526777,3445.3,3444.9,0.00113684]
[1641496078476,0.75768715,3445.5,3444.9,0.00113684]
[1641496078477,1.10526777,3445.4,3444.9,0.00113684]
[1641496078675,1.10526777,3445.4,3444.9,0.72670684]
[1641496078921,1.10697304,3445.4,3445.1,0.72558]
[1641496079125,1.10697304,3445.4,3445.1,1.02558]
[1641496079323,0.00170527,3445.4,3445.1,0.3]
[1641496079623,0.00170527,3445.4,3445.1,1.30483497]
[1641496080122,0.00170527,3445.4,3445.0,0.3]
[1641496080723,0.00170527,3445.4,3445.2,0.72558]
[1641496081926,0.00170527,3445.4,3445.0,1.45115]
[1641496082122,1.00170527,3445.4,3445.0,1.45115]
[1641496082323,0.00170527,3445.4,3445.0,1.45115]
[1641496082776,3.04064545,3445.5,3445.0,1.45115]
[1641496082977,3.04064545,3445.5,3445.2,0.72561]
[1641496083179,1.47318186,3445.7,3445.2,0.72561]
[1641496083378,1.47318186,3445.7,3445.2,0.3]
[1641496083576,0.00113685,3445.6,3445.1,0.00170527]
[1641496083977,1.47299871,3445.8,3445.1,0.00170527]
[1641496084176,1.47299871,3445.8,3445.1,0.00284212]
[1641496085478,1.75978036,3445.7,3445.1,0.00284212]
[1641496085679,1.75978036,3445.7,3445.2,0.72561]
[1641496086076,1.47299871,3445.8,3445.2,0.72561]
[1641496086077,1.47299871,3445.8,3445.3,0.00170527]
[1641496086732,1.47299871,3445.8,3445.1,0.00284212]
[1641496087532,2.47299871,3445.8,3445.1,0.72847212]
[1641496087933,2.47299871,3445.8,3445.2,0.00227369]
[1641496088534,1.0,3445.8,3445.1,0.00284212]
[1641496088731,1.0,3445.8,3445.2,2.18336776]
[1641496088931,1.00170527,3445.9,3445.2,2.18336776]
[1641496089131,0.00170527,3445.9,3445.3,0.00170527]
[1641496089331,1.0,3446.1,3445.3,0.72730527]
[1641496089332,0.00113685,3445.8,3445.3,0.72730527]
[1641496089532,0.00113685,3445.8,3445.3,0.00170527]
[1641496089734,0.7256379,3445.9,3445.4,0.00113685]
[1641496089933,1.48321536,3445.9,3445.3,0.00170527]
[1641496090177,0.00113685,3445.8,3444.9,0.00397896]
[1641496090574,0.00113685,3445.8,3445.2,0.72562]
[1641496090973,0.00113685,3445.8,3445.3,0.00170527]
[1641496091176,2.13344051,3445.7,3445.3,0.00170527]
[1641496091674,0.00113685,3445.8,3445.3,0.00170527]
[1641496091871,0.00113685,3445.8,3445.2,0.67732527]
[1641496092073,0.00227369,3445.7,3445.2,0.67732527]
[1641496092473,0.00170527,3445.6,3445.2,0.67732527]
[1641496092873,0.00113685,3445.5,3445.2,0.67732527]
[1641496093272,1.10562195,3445.5,3445.2,0.67732527]
[1641496093925,1.10562195,3445.6,3445.2,0.67732527]
[1641496094322,0.00113685,3445.5,3445.2,0.67732527]
[1641496098673,1.1067588,3445.5,3445.2,0.67732527]
[1641496098878,3.35,3445.4,3445.2,1e-08]
[1641496099476,1.1067588,3445.5,3445.2,1e-08]
[1641496099776,2.4566872,3445.3,3445.2,0.72562001]
[1641496100175,2.4566872,3445.3,3445.2,1.02562001]
[1641496100573,1.1067588,3445.5,3445.2,1.02562001]
[1641496100774,2.01594994,3445.3,3445.2,1.02562001]
[1641496101923,2.01594994,3445.3,3445.2,0.72562001]
[1641496102123,4.47263714,3445.3,3445.2,0.72562001]
[1641496102722,2.01594994,3445.3,3445.2,0.72562001]
[1641496102922,3.56230915,3445.4,3445.2,0.72562001]
[1641496103523,2.4566872,3445.3,3445.2,0.72562001]
[1641496104224,0.00113685,3445.5,3445.2,0.72562001]
[1641496104421,2.24707462,3445.3,3445.2,0.72562001]
[1641496105873,4.70376182,3445.3,3445.2,0.72562001]
[1641496106975,2.4566872,3445.3,3445.2,0.72562001]
[1641496107976,1.1067588,3445.5,3445.2,0.72562001]
[1641496108178,2.0491782,3445.3,3445.2,0.72562001]
[1641496109427,7.40257189,3445.3,3444.8,1e-08]
[1641496109628,7.40257189,3445.3,3444.5,0.05227177]
[1641496109629,0.01297068,3444.8,3444.5,0.05227177]
[1641496109827,0.71887068,3444.8,3444.5,0.05227177]
[1641496110031,1.25508739,3444.7,3444.5,0.05227177]
[1641496110427,10.02118739,3444.6,3444.5,0.05227177]
[1641496110627,11.02118739,3444.6,3444.5,0.05227177]
[1641496110824,11.02118739,3444.6,3444.5,0.05681916]
[1641496111028,14.1986415,3444.6,3444.5,0.05681916]
[1641496111227,14.1986415,3444.6,3444.5,0.00454739]
[1641496111626,4.2486415,3444.6,3443.8,0.05227331]
[1641496111932,0.76325636,3444.4,3443.9,0.00795793]
[1641496113271,0.7258707,3444.4,3443.9,0.00795793]
[1641496113477,1.10583302,3444.6,3444.3,1.69594515]
[1641496113676,1.10583302,3444.6,3444.3,2.42153515]
[1641496113874,1.10583302,3444.6,3444.5,0.72558]
[1641496114074,1.10583302,3444.9,3444.5,1.02558]
[1641496114372,1.10583302,3444.9,3444.6,0.00397896]
[1641496114772,1.10583302,3444.9,3444.7,1.05931755]
[1641496115174,1.10583302,3444.9,3444.8,0.00284212]
[1641496115773,1.10696987,3445.5,3444.8,0.00284212]
[1641496116274,1.10696987,3445.5,3445.1,1.62142871]
[1641496116531,1.10583302,3445.4,3445.1,1.62142871]
[1641496116729,1.10583302,3445.4,3445.1,2.34699871]
[1641496117328,1.10583302,3445.4,3445.1,2.64699871]
[1641496118130,1.10583302,3445.4,3445.3,1.20458121]
[1641496118831,0.00113685,3445.5,3445.2,1.45094]
[1641496119034,0.00113685,3445.5,3445.4,0.72551]
[1641496120875,0.00113685,3445.5,3445.4,1.02551]
[1641496122182,0.00113685,3445.5,3445.4,0.72551]
[1641496123937,0.00113685,3445.5,3445.4,2.73368899]
[1641496124324,1.10583302,3445.6,3445.4,2.73368899]
[1641496124728,1.10583302,3445.8,3445.6,0.72545]
[1641496124927,1.10583302,3445.8,3445.6,1.73721433]
[1641496125124,0.00227369,3445.7,3445.6,2.03721433]
[1641496126326,0.00227369,3445.7,3445.6,2.45521433]
[1641496127780,0.00227369,3445.7,3445.6,5.40918288]
[1641496127977,0.00227369,3445.7,3445.6,2.45521433]
[1641496128180,1.10583302,3446.4,3445.6,3.45521433]
[1641496128380,1.10583302,3446.4,3446.2,0.72524]
[1641496128580,0.00341054,3446.3,3446.2,1.02524]
[1641496128779,0.00341054,3446.3,3446.2,2.03295953]
[1641496129080,0.00341054,3446.3,3446.2,4.20409045]
[1641496129883,2.4595631,3446.3,3446.2,4.20409045]
[1641496130079,2.4595631,3446.3,3446.2,5.20409045]
[1641496138778,2.4595631,3446.3,3446.2,4.19637092]
[1641496139026,2.4595631,3446.3,3446.2,2.72273185]
[1641496139729,2.4595631,3446.3,3446.2,3.44797185]
[1641496140327,2.4595631,3446.3,3446.2,3.74797185]
[1641496141629,2.4595631,3446.3,3446.2,2.02524]
[1641496142030,2.4595631,3446.3,3446.2,0.72524]
[1641496143577,2.4595631,3446.3,3446.2,1.02524]
[1641496144378,2.4595631,3446.3,3446.2,0.72524]
[1641496145181,2.4595631,3446.3,3446.2,1.02524]
[1641496145378,2.4595631,3446.3,3446.2,0.72524]
[1641496145580,2.4595631,3446.3,3446.2,1.02524]
[1641496150884,1.10583302,3446.8,3446.3,7.8]
[1641496151083,1.10583302,3446.8,3446.5,0.72498]
[1641496151288,0.09774365,3447.7,3446.6,5.25]
[1641496151484,0.09774365,3447.7,3446.7,0.418]
[1641496151485,1.105014,3447.3,3446.7,0.418]
[1641496151683,0.00113685,3446.9,3446.8,3.2800657]
[1641496151885,1.105014,3447.3,3446.8,5.0029296]
[1641496152082,1.105014,3447.3,3446.8,6.3029296]
[1641496152282,1.47335199,3447.6,3446.9,1.0]
[1641496152482,1.47335199,3447.6,3447.3,1.20788276]
[1641496152683,0.00170527,3447.5,3447.3,1.62588276]
[1641496153082,1.81010333,3448.3,3447.3,2.62588276]
[1641496153284,2.20930772,3448.4,3447.3,2.62588276]
[1641496153482,0.00113685,3447.6,3447.3,2.62588276]
[1641496153685,0.00113685,3447.6,3447.4,1.96210572]
[1641496153926,0.00113685,3447.6,3447.5,1.44991]
[1641496154323,0.00113685,3447.6,3447.5,2.44991]
[1641496155625,0.00113685,3447.6,3447.5,2.86791]
[1641496155826,2.20930772,3448.3,3447.9,0.72485]
[1641496156026,2.20930772,3448.3,3448.2,1.41441632]
[1641496156427,11.19475495,3448.9,3448.2,1.41441632]
[1641496156428,2.20930772,3448.8,3448.2,1.41441632]
[1641496156630,2.20930772,3448.8,3448.2,1.71441632]
[1641496156827,0.00511581,3448.5,3448.4,1.44953]
[1641496161290,4.3703226,3449.5,3448.5,4.5]
[1641496161533,0.91740407,3449.5,3448.9,1.44923]
[1641496161732,7.5115,3449.7,3448.9,1.44923]
[1641496161733,0.00341054,3449.1,3448.9,0.72461]
[1641496161931,0.00341054,3449.1,3449.0,0.3]
[1641496162131,3.68585495,3449.7,3449.0,0.3]
[1641496162337,3.68585495,3449.7,3449.6,1.65385243]
[1641496162533,0.6988178,3449.8,3449.6,2.37847243]
[1641496163732,3.6,3449.7,3449.5,2.01782603]
[1641496164134,0.00625266,3449.6,3449.5,2.01782603]
[1641496164433,0.00682108,3449.7,3449.5,2.01782603]
[1641496165782,0.00682108,3449.7,3449.5,2.74245603]
[1641496166881,0.00682108,3449.7,3449.5,3.04245603]
[1641496167378,0.00682108,3449.7,3449.5,1.02463]
[1641496167580,0.00682108,3449.7,3449.5,0.72463]
[1641496167783,2.75484411,3449.7,3448.8,0.42232241]
[1641496167983,2.76729515,3449.7,3448.8,0.00432241]
[1641496168586,2.18353426,3449.5,3448.8,0.00432241]
[1641496169034,0.00511581,3449.4,3448.8,0.00432241]
[1641496169332,0.00454739,3449.3,3448.8,1.44948]
[1641496169730,2.18353426,3449.5,3448.8,1.44948]
[1641496169731,0.00397897,3449.2,3448.8,1.44948]
[1641496170133,0.00341054,3449.1,3448.8,1.74948]
[1641496170535,0.00284212,3449.0,3448.8,1.74948]
[1641496170737,0.00284212,3449.0,3448.9,0.72473]
[1641496170932,2.78208293,3449.6,3448.9,0.72473]
[1641496171134,3.9554723,3449.7,3448.9,0.72473]
[1641496171336,0.00568424,3449.5,3448.9,0.72473]
[1641496171647,1.43875943,3449.0,3448.9,0.72473]
[1641496172032,1.44160155,3449.0,3448.9,0.72473]
[1641496172677,0.00284212,3449.0,3448.9,0.72473]
[1641496173479,2.45717038,3449.0,3448.9,0.72473]
[1641496175484,4.6664781,3449.0,3448.9,0.72473]
[1641496176430,2.45717038,3449.0,3448.9,0.72473]
[1641496177023,3.92200476,3449.0,3448.9,0.72473]
[1641496177826,0.00284212,3449.0,3448.9,0.72473]
[1641496178524,1.10141323,3449.0,3448.9,0.72473]
[1641496179324,0.00284212,3449.0,3448.9,0.72473]
[1641496179523,0.00284212,3449.0,3448.8,2.30170271]
[1641496179924,0.00227369,3448.9,3448.8,2.30170271]
[1641496180379,1.09856872,3449.0,3448.8,2.30170271]
[1641496180579,1.09856872,3449.0,3448.8,3.21790271]
[1641496181178,1.09856872,3449.2,3448.9,1.14259]
[1641496181377,1.09856872,3449.2,3449.0,0.72457]
[1641496181578,0.00113685,3449.1,3449.0,1.44257]
[1641496181979,0.00113685,3449.1,3449.0,2.44257]
[1641496182579,0.00113685,3449.1,3449.0,4.25067082]
[1641496182779,1.09856872,3449.2,3449.1,1.79292643]
[1641496183080,1.09856872,3449.3,3449.1,4.24204643]
[1641496183780,2.45432826,3449.2,3449.1,2.44912]
[1641496184234,2.45432826,3449.2,3449.1,2.44912]
[1641496184429,1.09856872,3449.3,3449.1,2.44912]
[1641496185031,3.55289698,3449.2,3449.1,2.44912]
[1641496185832,1.09856872,3449.2,3449.1,2.44912]
[1641496186634,0.00113685,3449.3,3449.1,4.04831865]
[1641496188801,0.00113685,3449.3,3449.1,3.04831865]
[1641496190000,0.00113685,3449.3,3449.1,1.74912]
[1641496190199,0.00113685,3449.3,3449.1,2.74912]
[1641496190700,0.00113685,3449.3,3449.1,1.74912]
[1641496190900,0.00113685,3449.3,3449.2,1.0]
[1641496191200,0.00113685,3449.3,3449.1,2.74912]
[1641496192635,0.00113685,3449.3,3449.1,1.74912]
[1641496193035,0.00113685,3449.3,3449.1,2.74912]
[1641496193236,0.00113685,3449.3,3449.1,1.74912]
[1641496193536,0.00113685,3449.3,3449.1,2.74912]
[1641496193737,0.00113685,3449.3,3449.1,1.74912]
[1641496194136,0.00113685,3449.3,3449.1,2.74912]
[1641496195278,0.00113685,3449.3,3449.1,1.74912]
[1641496195480,0.00113685,3449.3,3449.1,1.44912]
[1641496197079,1.84596079,3449.3,3449.1,1.44912]
[1641496197383,1.84596079,3449.3,3449.1,1.74912]
[1641496198382,2.45388719,3449.2,3449.1,1.74912]
[1641496198783,2.45388719,3449.2,3449.1,1.44912]
[1641496199625,5.18900841,3449.2,3449.1,1.44912]
[1641496199827,5.23363897,3449.2,3449.1,1.44912]
[1641496200029,5.18319653,3449.2,3449.1,1.44912]
[1641496200226,2.45388719,3449.2,3449.1,1.44912]
[1641496200629,5.14964752,3449.2,3449.1,1.44912]
[1641496200825,2.45388719,3449.2,3449.1,1.44912]
[1641496202986,2.45388719,3449.2,3449.1,1.74912]
[1641496203783,2.45388719,3449.2,3449.1,3.95011482]
[1641496204285,0.00113685,3449.3,3449.2,0.72454]
[1641496204485,2.45388719,3449.5,3449.2,1.14254]
[1641496204686,2.45388719,3449.5,3449.2,2.14254]
[1641496205090,0.6988178,3449.8,3449.2,2.14254]
[1641496205486,0.00227369,3449.7,3449.4,0.72447]
[1641496205686,0.00227369,3449.7,3449.5,2.10649872]
[1641496205887,0.00170527,3449.6,3449.5,2.10649872]
[1641496206089,0.00170527,3449.6,3449.5,3.10649872]
[1641496206535,0.00170527,3449.6,3449.5,4.55541872]
[1641496206936,0.00170527,3449.6,3449.5,4.85541872]
[1641496208036,2.45341051,3449.7,3449.6,8.55]
[1641496208236,0.6988178,3449.8,3449.6,9.5728]
[1641496208438,4.78879842,3450.5,3449.7,7.47428]
[1641496208638,4.78879842,3450.5,3450.0,0.6518293]
[1641496208836,4.78879842,3450.5,3450.1,0.418]
[1641496209035,7.66483438,3450.8,3450.2,2.61987758]
[1641496209238,7.66483438,3450.8,3450.3,1.15626205]
[1641496209437,0.00625266,3450.7,3450.3,2.45626205]
[1641496209641,0.41279266,3450.8,3450.6,5.9]
[1641496209842,1.46483438,3451.5,3450.7,12.2069513]
[1641496210039,1.46483438,3451.5,3451.0,0.72405]
[1641496210294,0.00397896,3451.4,3451.1,2.12093089]
[1641496210486,0.00397896,3451.4,3451.1,7.64693089]
[1641496210787,3.67873582,3452.5,3451.3,9.65]
[1641496210982,6.2,3453.0,3451.9,1.44772]
[1641496210983,2.20474485,3452.7,3451.9,1.44772]
[1641496211182,2.20474485,3452.7,3452.2,0.72386]
[1641496211384,2.20474485,3452.7,3452.3,1.89665622]
[1641496211584,2.0,3453.4,3452.4,5.6]
[1641496211789,2.0,3453.4,3452.8,0.6513432]
[1641496211984,0.00852635,3452.9,3452.8,0.8279432]
[1641496212183,2.0,3453.4,3452.8,0.8946]
[1641496212383,2.0,3453.4,3453.0,0.72365]
[1641496212583,0.0022737,3453.3,3453.1,0.718]
[1641496212993,0.00170527,3453.2,3453.1,2.0205691]
[1641496213182,2.0,3453.4,3453.2,1.10234966]
[1641496213385,0.6988178,3454.0,3453.3,3.44539159]
[1641496213783,0.6988178,3454.0,3453.5,5.94948]
[1641496213784,0.00397897,3453.9,3453.5,5.94948]
[1641496214036,0.00397897,3453.9,3453.7,2.30250533]
[1641496214238,1.12371272,3454.3,3453.9,0.6510636]
[1641496214436,1.12371272,3454.3,3454.1,0.72341]
[1641496214637,0.00437398,3455.3,3454.3,4.8]
[1641496214837,0.00437398,3455.3,3454.5,0.72335]
[1641496215036,0.00437398,3455.3,3454.5,1.14135]
[1641496215236,6.11058551,3455.6,3454.6,0.3]
[1641496215438,3.8329,3455.7,3454.6,3.20210777]
[1641496215644,3.8329,3455.7,3454.7,1.0]
[1641496216039,0.01023163,3455.6,3454.6,3.47872777]
[1641496216445,0.0096632,3455.5,3454.7,0.418]
[1641496216640,0.0096632,3455.5,3455.2,2.01910177]
[1641496216937,1.165,3456.3,3455.2,2.01910177]
[1641496216938,0.00909478,3455.4,3455.3,0.418]
[1641496217337,0.00909478,3455.4,3455.3,1.84259788]
[1641496217538,0.00909478,3455.4,3455.3,3.14259788]
[1641496217985,0.00437368,3456.7,3455.3,3.14259788]
[1641496218190,0.00437368,3456.7,3455.7,0.72315]
[1641496218390,0.00341054,3456.0,3455.7,1.78615]
[1641496218592,0.00341054,3456.0,3455.9,1.41605246]
[1641496218787,0.00437368,3456.7,3455.9,1.83405246]
[1641496218989,0.00437368,3456.7,3455.9,0.718]
[1641496219188,1.451,3457.1,3455.9,0.418]
[1641496219389,2.79024587,3457.0,3455.7,1.02315]
[1641496219589,0.01224339,3456.9,3455.7,0.3]
[1641496219790,2.16883666,3456.1,3455.6,1.7463]
[1641496219990,2.16883666,3456.1,3455.6,0.27628114]
[1641496220802,0.6988178,3456.1,3454.6,3.53642041]
[1641496221092,0.6988178,3456.1,3455.0,0.42027369]
[1641496221531,0.6988178,3456.1,3455.1,0.00170527]
[1641496221732,0.6988178,3456.1,3455.6,1.4463]
[1641496221936,0.6988178,3456.1,3455.6,1.7463]
[1641496222334,0.6988178,3456.1,3455.7,3.06283079]
[1641496222535,5.7196,3457.2,3455.6,1.7463]
[1641496222536,5.2196,3457.2,3455.9,6.9]
[1641496222734,3.9697,3457.2,3455.9,0.418]
[1641496222936,0.00795793,3456.8,3456.5,1.44601]
[1641496223136,0.00795793,3456.8,3456.5,1.74601]
[1641496223342,7.04088985,3458.0,3456.6,1.22939229]
[1641496223535,7.04088985,3458.0,3456.7,0.418]
[1641496223734,0.00682109,3457.9,3457.2,0.72292]
[1641496224135,0.00625266,3457.8,3457.2,1.02292]
[1641496224337,0.00625266,3457.8,3457.5,1.37366589]
[1641496224535,5.0,3458.0,3457.5,1.67366589]
[1641496224536,0.00568424,3457.7,3457.5,1.67366589]
[1641496224936,0.00511582,3457.6,3457.5,1.67366589]
[1641496225385,0.00511582,3457.6,3457.5,0.3]
[1641496225588,5.0,3458.0,3457.5,7.01356]
[1641496225786,5.0,3458.0,3457.5,2.73006]
[1641496225989,5.0,3458.0,3457.7,2.20527266]
[1641496225990,0.00170527,3457.9,3457.7,2.20527266]
[1641496226186,0.6988178,3458.2,3457.8,0.418]
[1641496226387,6.53257998,3460.1,3457.8,0.418]
[1641496226388,0.02,3460.0,3458.1,6.46227547]
[1641496226589,0.02,3460.0,3458.3,1.44513]
[1641496226788,0.02,3460.0,3458.4,0.418]
[1641496227186,0.02,3460.0,3459.3,1.89768846]
[1641496227590,0.02552635,3459.4,3459.3,2.19768846]
[1641496227988,0.02552635,3459.4,3459.3,0.3]
[1641496228493,0.02552635,3459.4,3459.0,0.3]
[1641496228691,0.02552635,3459.4,3458.8,0.418]
[1641496228943,0.00795792,3459.3,3458.3,0.418]
[1641496229138,1.93616638,3458.5,3457.9,0.418]
[1641496229337,0.0073895,3459.2,3457.9,0.418]
[1641496229538,0.00284211,3458.4,3457.9,0.418]
[1641496229837,0.00227369,3458.3,3457.9,0.418]
[1641496230239,0.00170527,3458.2,3458.0,2.23528875]
[1641496230637,0.00113684,3458.1,3457.9,0.418]